[Event "Swedish Chess Championship 2019: Kadett-SM"]
[Site "Stiga Sports Arena, Arenatorget 1, Eskilstuna, Sweden, Sweden"]
[Date "2019.07.11"]
[Round "5.2"]
[White "Joensson, Oscar"]
[Black "Nguyen, Gabriel"]
[Result "0-1"]
[TimeControl "90 minutes for 40 moves + 30 minutes for the rest of the game + 30 seconds per move from move one"]
[WhiteFideId "1729977"]
[BlackFideId "1720791"]
[WhiteElo "1752"]
[BlackElo "2035"]

1. d4 {[%clk 01:30:57]} {[%emt 00:00:01]} Nf6 {[%clk 01:30:22]} {[%emt
00:00:39]} 2. Nf3 {[%clk 01:31:21]} {[%emt 00:00:06]} g6 {[%clk 01:30:48]}
{[%emt 00:00:04]} 3. e3 {[%clk 01:31:29]} {[%emt 00:00:23]} Bg7 {[%clk
01:31:13]} {[%emt 00:00:05]} 4. b3 {[%clk 01:31:51]} {[%emt 00:00:08]} O-O
{[%clk 01:31:22]} {[%emt 00:00:21]} 5. Bb2 {[%clk 01:31:42]} {[%emt 00:00:38]}
d6 {[%clk 01:31:32]} {[%emt 00:00:21]} 6. Be2 {[%clk 01:31:58]} {[%emt
00:00:14]} c5 {[%clk 01:28:59]} {[%emt 00:03:04]} 7. O-O {[%clk 01:31:39]}
{[%emt 00:00:49]} b6 {[%clk 01:28:48]} {[%emt 00:00:41]} 8. c4 {[%clk
01:25:13]} {[%emt 00:06:55]} Bb7 {[%clk 01:27:03]} {[%emt 00:02:16]} 9. Nbd2
{[%clk 01:21:09]} {[%emt 00:04:34]} e6 {[%clk 01:23:36]} {[%emt 00:03:56]} 10.
a3 {[%clk 01:17:26]} {[%emt 00:04:12]} Nc6 {[%clk 01:16:02]} {[%emt 00:08:05]}
11. Qc2 {[%clk 01:05:35]} {[%emt 00:12:21]} Qc7 {[%clk 01:11:11]} {[%emt
00:05:21]} 12. Bc3 {[%clk 00:54:14]} {[%emt 00:11:51]} e5 {[%clk 00:52:26]}
{[%emt 00:19:16]} 13. dxe5 {[%clk 00:48:46]} {[%emt 00:05:58]} dxe5 {[%clk
00:52:45]} {[%emt 00:00:11]} 14. Qb2 {[%clk 00:43:34]} {[%emt 00:05:41]} Rae8
{[%clk 00:49:06]} {[%emt 00:04:09]} 15. b4 {[%clk 00:40:40]} {[%emt 00:03:25]}
Nd7 {[%clk 00:37:12]} {[%emt 00:12:23]} 16. Rfd1 {[%clk 00:21:55]} {[%emt
00:19:14]} Nd8 {[%clk 00:29:11]} {[%emt 00:08:31]} 17. Nb3 {[%clk 00:10:58]}
{[%emt 00:11:27]} Ne6 {[%clk 00:26:43]} {[%emt 00:02:59]} 18. Rd2 {[%clk
00:09:00]} {[%emt 00:02:28]} f6 {[%clk 00:12:28]} {[%emt 00:14:46]} 19. Rad1
{[%clk 00:07:58]} {[%emt 00:01:31]} Rd8 {[%clk 00:10:50]} {[%emt 00:02:08]} 20.
Ne1 {[%clk 00:03:07]} {[%emt 00:05:21]} Rfe8 {[%clk 00:08:29]} {[%emt
00:02:51]} 21. f3 {[%clk 00:02:00]} {[%emt 00:01:37]} Bh6 {[%clk 00:08:31]}
{[%emt 00:00:29]} 22. Kf2 {[%clk 00:01:24]} {[%emt 00:01:05]} Nd4 {[%clk
00:07:01]} {[%emt 00:02:00]} 23. bxc5 {[%clk 00:01:06]} {[%emt 00:00:49]} Nxb3
{[%clk 00:05:53]} {[%emt 00:01:38]} 24. Qxb3 {[%clk 00:01:27]} {[%emt
00:00:08]} Nxc5 {[%clk 00:06:18]} {[%emt 00:00:06]} 25. Qc2 {[%clk 00:01:37]}
{[%emt 00:00:20]} Ne6 {[%clk 00:03:41]} {[%emt 00:03:07]} 26. Qb3 {[%clk
00:01:25]} {[%emt 00:00:41]} Bxe3+ {[%clk 00:03:51]} {[%emt 00:00:21]} 27. Kf1
{[%clk 00:01:10]} {[%emt 00:00:44]} Bxd2 {[%clk 00:03:41]} {[%emt 00:00:41]} 28.
Rxd2 {[%clk 00:01:22]} {[%emt 00:00:18]} Rxd2 {[%clk 00:04:06]} {[%emt
00:00:05]} 29. Bxd2 {[%clk 00:01:47]} {[%emt 00:00:05]} Nd4 {[%clk 00:04:08]}
{[%emt 00:00:27]} 30. Qe3 {[%clk 00:00:55]} {[%emt 00:01:22]} Ba6 {[%clk
00:04:00]} {[%emt 00:00:39]} 31. f4 {[%clk 00:00:40]} {[%emt 00:00:44]} Nxe2
{[%clk 00:04:23]} {[%emt 00:00:07]} 32. Kxe2 {[%clk 00:01:00]} {[%emt
00:00:10]} Qxc4+ {[%clk 00:04:31]} {[%emt 00:00:22]} 33. Kf2 {[%clk 00:00:37]}
{[%emt 00:00:54]} Rd8 {[%clk 00:03:52]} {[%emt 00:01:09]} 34. fxe5 {[%clk
00:00:31]} {[%emt 00:00:36]} fxe5 {[%clk 00:03:50]} {[%emt 00:00:33]} 35. Qg5
{[%clk 00:00:42]} {[%emt 00:00:19]} Rf8+ {[%clk 00:03:36]} {[%emt 00:00:44]} 36.
Kg3 {[%clk 00:00:45]} {[%emt 00:00:26]} Qe6 {[%clk 00:03:07]} {[%emt 00:00:58]}
37. Bb4 {[%clk 00:00:57]} {[%emt 00:00:19]} Qf5 {[%clk 00:02:25]} {[%emt
00:01:12]} 0-1

[Event "Swedish Chess Championship 2019: Kadett-SM"]
[Site "Stiga Sports Arena, Arenatorget 1, Eskilstuna, Sweden, Sweden"]
[Date "2019.07.11"]
[Round "5.3"]
[White "Lindholm, Gustav"]
[Black "Zarytovskaya, Margo"]
[Result "0-1"]
[TimeControl "90 minutes for 40 moves + 30 minutes for the rest of the game + 30 seconds per move from move one"]
[WhiteFideId "1736515"]
[BlackFideId "14149249"]
[WhiteElo "1950"]
[BlackElo "1895"]

1. d4 {[%clk 01:30:57]} {[%emt 00:00:02]} Nf6 {[%clk 01:30:55]} {[%emt
00:00:06]} 2. c4 {[%clk 01:31:20]} {[%emt 00:00:07]} c5 {[%clk 01:31:21]}
{[%emt 00:00:05]} 3. d5 {[%clk 01:31:43]} {[%emt 00:00:07]} b5 {[%clk
01:31:46]} {[%emt 00:00:05]} 4. cxb5 {[%clk 01:32:03]} {[%emt 00:00:10]} a6
{[%clk 01:32:11]} {[%emt 00:00:05]} 5. b6 {[%clk 01:32:16]} {[%emt 00:00:16]}
d6 {[%clk 01:32:28]} {[%emt 00:00:13]} 6. Nc3 {[%clk 01:32:36]} {[%emt
00:00:11]} Nbd7 {[%clk 01:32:32]} {[%emt 00:00:26]} 7. e4 {[%clk 01:32:08]}
{[%emt 00:00:58]} g6 {[%clk 01:32:27]} {[%emt 00:00:35]} 8. Nf3 {[%clk
01:31:09]} {[%emt 00:01:28]} Bg7 {[%clk 01:32:32]} {[%emt 00:00:25]} 9. Bd2
{[%clk 01:29:25]} {[%emt 00:02:14]} Qxb6 {[%clk 01:31:33]} {[%emt 00:01:30]} 10.
Qc2 {[%clk 01:27:19]} {[%emt 00:02:36]} Rb8 {[%clk 01:25:41]} {[%emt 00:06:22]}
11. Rb1 {[%clk 01:23:22]} {[%emt 00:04:26]} O-O {[%clk 01:23:43]} {[%emt
00:02:29]} 12. Bc4 {[%clk 01:19:29]} {[%emt 00:04:23]} Ng4 {[%clk 01:22:42]}
{[%emt 00:01:31]} 13. O-O {[%clk 01:13:23]} {[%emt 00:06:35]} Nge5 {[%clk
01:19:52]} {[%emt 00:03:20]} 14. Nxe5 {[%clk 01:13:20]} {[%emt 00:00:34]} Nxe5
{[%clk 01:20:16]} {[%emt 00:00:07]} 15. b3 {[%clk 01:13:09]} {[%emt 00:00:41]}
Bd7 {[%clk 01:12:59]} {[%emt 00:07:48]} 16. f4 {[%clk 01:08:46]} {[%emt
00:04:52]} Ng4 {[%clk 01:12:39]} {[%emt 00:00:49]} 17. Kh1 {[%clk 01:01:07]}
{[%emt 00:08:09]} Bd4 {[%clk 01:06:51]} {[%emt 00:06:18]} 18. h3 {[%clk
00:55:27]} {[%emt 00:06:10]} Nf2+ {[%clk 01:04:23]} {[%emt 00:02:58]} 19. Kh2
{[%clk 00:54:26]} {[%emt 00:01:31]} f5 {[%clk 01:04:08]} {[%emt 00:00:46]} 20.
Rbe1 {[%clk 00:41:06]} {[%emt 00:13:49]} fxe4 {[%clk 00:54:18]} {[%emt
00:10:20]} 21. Nxe4 {[%clk 00:29:11]} {[%emt 00:12:25]} Bf5 {[%clk 00:53:50]}
{[%emt 00:00:58]} 22. Bd3 {[%clk 00:28:58]} {[%emt 00:00:43]} c4 {[%clk
00:51:23]} {[%emt 00:02:57]} 23. Qxc4 {[%clk 00:22:23]} {[%emt 00:07:05]} Rfc8
{[%clk 00:48:15]} {[%emt 00:03:38]} 24. Qxa6 {[%clk 00:21:56]} {[%emt
00:00:57]} Qxa6 {[%clk 00:46:56]} {[%emt 00:01:49]} 25. Bxa6 {[%clk 00:22:21]}
{[%emt 00:00:05]} Nxe4 {[%clk 00:45:40]} {[%emt 00:01:45]} 26. Bxc8 {[%clk
00:22:36]} {[%emt 00:00:14]} Nxd2 {[%clk 00:45:38]} {[%emt 00:00:33]} 27. Bxf5
{[%clk 00:22:57]} {[%emt 00:00:08]} gxf5 {[%clk 00:46:00]} {[%emt 00:00:08]} 28.
Rh1 {[%clk 00:21:57]} {[%emt 00:01:29]} Kf7 {[%clk 00:43:37]} {[%emt 00:02:54]}
29. Re2 {[%clk 00:20:55]} {[%emt 00:01:32]} Ne4 {[%clk 00:43:08]} {[%emt
00:01:00]} 30. Rhe1 {[%clk 00:11:19]} {[%emt 00:10:06]} Bf2 {[%clk 00:39:16]}
{[%emt 00:04:22]} 31. Rf1 {[%clk 00:09:51]} {[%emt 00:01:58]} Bg3+ {[%clk
00:39:18]} {[%emt 00:00:28]} 32. Kg1 {[%clk 00:09:23]} {[%emt 00:00:58]} Rb5
{[%clk 00:38:56]} {[%emt 00:00:52]} 33. Rf3 {[%clk 00:08:50]} {[%emt 00:01:02]}
Rxd5 {[%clk 00:38:21]} {[%emt 00:01:06]} 34. a4 {[%clk 00:04:56]} {[%emt
00:04:25]} Rd1+ {[%clk 00:37:17]} {[%emt 00:01:33]} 35. Rf1 {[%clk 00:05:06]}
{[%emt 00:00:19]} Bh2+ {[%clk 00:37:38]} {[%emt 00:00:09]} 36. Kxh2 {[%clk
00:05:16]} {[%emt 00:00:20]} Rxf1 {[%clk 00:38:03]} {[%emt 00:00:06]} 37. a5
{[%clk 00:01:34]} {[%emt 00:04:12]} Ra1 {[%clk 00:37:28]} {[%emt 00:01:04]} 38.
b4 {[%clk 00:01:48]} {[%emt 00:00:17]} Rb1 {[%clk 00:37:12]} {[%emt 00:00:45]}
39. a6 {[%clk 00:01:11]} {[%emt 00:01:08]} Rxb4 {[%clk 00:37:27]} {[%emt
00:00:15]} 40. Ra2 {[%clk 00:01:31]} {[%emt 00:00:10]} Rb8 {[%clk 00:37:47]}
{[%emt 00:00:10]} 41. Ra5 {[%clk 00:01:13]} {[%emt 00:00:49]} Nc5 {[%clk
00:37:13]} {[%emt 00:01:04]} 0-1

[Event "Swedish Chess Championship 2019: Kadett-SM"]
[Site "Stiga Sports Arena, Arenatorget 1, Eskilstuna, Sweden, Sweden"]
[Date "2019.07.11"]
[Round "5.4"]
[White "Ivarsson, Sebastian"]
[Black "Bensryd, Hampus"]
[Result "1/2-1/2"]
[TimeControl "90 minutes for 40 moves + 30 minutes for the rest of the game + 30 seconds per move from move one"]
[WhiteFideId "1738593"]
[BlackFideId "1738330"]
[WhiteElo "2079"]
[BlackElo "1938"]

1. d4 {[%clk 01:30:52]} {[%emt 00:00:07]} Nf6 {[%clk 01:30:49]} {[%emt
00:00:12]} 2. c4 {[%clk 01:31:15]} {[%emt 00:00:07]} b6 {[%clk 01:30:51]}
{[%emt 00:00:28]} 3. Nf3 {[%clk 01:29:56]} {[%emt 00:01:49]} e6 {[%clk
01:30:57]} {[%emt 00:00:24]} 4. g3 {[%clk 01:30:06]} {[%emt 00:00:20]} Bb7
{[%clk 01:31:07]} {[%emt 00:00:21]} 5. Bg2 {[%clk 01:30:28]} {[%emt 00:00:07]}
Be7 {[%clk 01:31:10]} {[%emt 00:00:27]} 6. O-O {[%emt 00:01:33]} O-O {[%clk
01:31:23]} {[%emt 00:00:12]} 7. Nc3 {[%clk 01:28:36]} {[%emt 00:01:23]} d5
{[%clk 01:31:16]} {[%emt 00:00:38]} 8. cxd5 {[%clk 01:25:43]} {[%emt 00:03:24]}
exd5 {[%clk 01:29:20]} {[%emt 00:02:25]} 9. Re1 {[%clk 01:19:46]} {[%emt
00:06:26]} Nbd7 {[%clk 01:26:54]} {[%emt 00:02:57]} 10. Bf4 {[%clk 01:17:15]}
{[%emt 00:03:00]} c5 {[%clk 01:22:32]} {[%emt 00:04:54]} 11. Rc1 {[%clk
01:14:33]} {[%emt 00:03:11]} Ne4 {[%clk 01:13:56]} {[%emt 00:09:07]} 12. dxc5
{[%clk 01:09:12]} {[%emt 00:05:50]} Bxc5 {[%clk 01:13:26]} {[%emt 00:01:00]} 13.
Nd4 {[%clk 00:43:14]} {[%emt 00:26:28]} Ndf6 {[%clk 01:05:16]} {[%emt
00:08:39]} 14. a3 {[%clk 00:31:08]} {[%emt 00:12:36]} Nxc3 {[%clk 01:02:38]}
{[%emt 00:03:08]} 15. Rxc3 {[%clk 00:31:16]} {[%emt 00:00:22]} Ne4 {[%clk
01:01:43]} {[%emt 00:01:26]} 16. Rc2 {[%clk 00:29:33]} {[%emt 00:02:10]} Qf6
{[%clk 00:59:44]} {[%emt 00:02:31]} 17. Be3 {[%clk 00:28:36]} {[%emt 00:01:27]}
Rac8 {[%clk 00:55:17]} {[%emt 00:04:57]} 18. Bh3 {[%clk 00:26:33]} {[%emt
00:02:33]} Rc7 {[%clk 00:44:14]} {[%emt 00:11:34]} 19. b4 {[%clk 00:25:08]}
{[%emt 00:01:55]} Bd6 {[%clk 00:40:21]} {[%emt 00:04:22]} 20. Rxc7 {[%clk
00:22:51]} {[%emt 00:02:48]} Bxc7 {[%clk 00:40:41]} {[%emt 00:00:10]} 21. Qc2
{[%clk 00:23:12]} {[%emt 00:00:08]} Bb8 {[%clk 00:38:25]} {[%emt 00:02:46]} 22.
Rc1 {[%clk 00:19:41]} {[%emt 00:04:02]} Ng5 {[%clk 00:35:29]} {[%emt 00:03:25]}
23. Bxg5 {[%clk 00:17:02]} {[%emt 00:03:10]} Qxg5 {[%clk 00:34:38]} {[%emt
00:01:21]} 24. Nc6 {[%clk 00:15:51]} {[%emt 00:01:40]} Bxc6 {[%clk 00:33:45]}
{[%emt 00:01:24]} 25. Qxc6 {[%clk 00:16:16]} {[%emt 00:00:06]} Qh5 {[%clk
00:30:19]} {[%emt 00:03:54]} 26. Bf1 {[%clk 00:11:04]} {[%emt 00:05:43]} Qe5
{[%clk 00:29:14]} {[%emt 00:01:34]} 27. Qb7 {[%clk 00:10:04]} {[%emt 00:01:31]}
g6 {[%clk 00:28:21]} {[%emt 00:01:23]} 28. Bg2 {[%clk 00:10:03]} {[%emt
00:00:31]} Qxe2 {[%clk 00:22:46]} {[%emt 00:06:04]} 29. Bxd5 {[%clk 00:08:35]}
{[%emt 00:01:58]} Qe5 {[%clk 00:22:53]} {[%emt 00:00:23]} 30. Kf1 {[%clk
00:08:26]} {[%emt 00:00:40]} Kg7 {[%clk 00:21:01]} {[%emt 00:02:22]} 31. Re1
{[%clk 00:08:25]} {[%emt 00:00:31]} Qc7 {[%clk 00:19:54]} {[%emt 00:01:36]} 32.
Qxc7 {[%clk 00:06:37]} {[%emt 00:02:19]} Bxc7 {[%clk 00:19:19]} {[%emt
00:01:05]} 33. Re7 {[%clk 00:07:01]} {[%emt 00:00:05]} Bb8 {[%clk 00:19:28]}
{[%emt 00:00:20]} 34. Ke2 {[%clk 00:06:42]} {[%emt 00:00:49]} Kf6 {[%clk
00:16:18]} {[%emt 00:03:40]} 35. Rb7 {[%clk 00:07:07]} {[%emt 00:00:06]} Ke5
{[%clk 00:12:09]} {[%emt 00:04:39]} 36. Bxf7 {[%clk 00:05:57]} {[%emt
00:01:40]} Kd4 {[%clk 00:12:30]} {[%emt 00:00:08]} 37. Rd7+ {[%clk 00:03:07]}
{[%emt 00:03:20]} Kc3 {[%clk 00:12:45]} {[%emt 00:00:16]} 38. Rd3+ {[%clk
00:02:55]} {[%emt 00:00:41]} Kc2 {[%clk 00:12:33]} {[%emt 00:00:40]} 39. Bb3+
{[%clk 00:01:24]} {[%emt 00:02:03]} Kb2 {[%clk 00:10:15]} {[%emt 00:02:49]} 40.
Bd5 {[%clk 00:00:55]} {[%emt 00:00:59]} Rc8 {[%clk 00:08:33]} {[%emt 00:02:11]}
41. a4 {[%clk 00:24:43]} {[%emt 00:06:43]} Rc2 {[%clk 00:35:00]} {[%emt
00:04:02]} 42. Ke3 {[%clk 00:24:39]} {[%emt 00:00:34]} Rc3 {[%clk 00:32:31]}
{[%emt 00:02:59]} 43. a5 {[%clk 00:24:41]} {[%emt 00:00:29]} Bc7 {[%clk
00:30:45]} {[%emt 00:02:15]} 44. a6 {[%clk 00:21:20]} {[%emt 00:03:51]} b5
{[%clk 00:29:07]} {[%emt 00:02:09]} 45. Bg8 {[%clk 00:20:48]} {[%emt 00:01:01]}
h6 {[%clk 00:27:05]} {[%emt 00:02:32]} 46. Bf7 {[%clk 00:15:59]} {[%emt
00:05:19]} Bb6+ {[%clk 00:26:54]} {[%emt 00:00:41]} 47. Ke2 {[%clk 00:16:15]}
{[%emt 00:00:13]} Rxd3 {[%clk 00:27:14]} {[%emt 00:00:12]} 48. Kxd3 {[%clk
00:16:07]} {[%emt 00:00:37]} Bxf2 {[%clk 00:27:37]} {[%emt 00:00:07]} 49. Be8
{[%clk 00:15:39]} {[%emt 00:00:58]} Kb3 {[%clk 00:27:35]} {[%emt 00:00:31]} 50.
Bxb5 {[%clk 00:15:43]} {[%emt 00:00:26]} Kxb4 {[%clk 00:27:59]} {[%emt
00:00:08]} 51. Bc6 {[%clk 00:15:49]} {[%emt 00:00:21]} Bg1 {[%clk 00:28:20]}
{[%emt 00:00:10]} 52. h3 {[%clk 00:16:12]} {[%emt 00:00:07]} Bf2 {[%clk
00:28:33]} {[%emt 00:00:17]} 53. g4 {[%clk 00:16:40]} {[%emt 00:00:04]} g5
{[%clk 00:28:44]} {[%emt 00:00:19]} 54. Ke4 {[%clk 00:16:29]} {[%emt 00:00:42]}
Kc5 {[%clk 00:29:07]} {[%emt 00:00:07]} 55. Bb7 {[%clk 00:16:45]} {[%emt
00:00:14]} Bh4 {[%clk 00:29:25]} {[%emt 00:00:11]} 56. Kf5 {[%clk 00:17:09]}
{[%emt 00:00:07]} Kb6 {[%clk 00:29:46]} {[%emt 00:00:09]} 57. Kg6 {[%clk
00:16:36]} {[%emt 00:01:03]} Kc7 {[%clk 00:30:05]} {[%emt 00:00:11]} 58. Kxh6
{[%clk 00:16:57]} {[%emt 00:00:10]} Kb6 {[%clk 00:30:27]} {[%emt 00:00:08]}
1/2-1/2

[Event "Swedish Chess Championship 2019: Kadett-SM"]
[Site "Stiga Sports Arena, Arenatorget 1, Eskilstuna, Sweden, Sweden"]
[Date "2019.07.11"]
[Round "5.5"]
[White "Mitra, Akash"]
[Black "Hall, Alexander"]
[Result "1-0"]
[TimeControl "90 minutes for 40 moves + 30 minutes for the rest of the game + 30 seconds per move from move one"]
[WhiteFideId "1726714"]
[BlackFideId "1738933"]
[WhiteElo "1957"]
[BlackElo "1805"]

1. e4 {[%clk 01:30:59]} c5 {[%clk 01:22:02]} {[%emt 00:08:58]} 2. Nf3 {[%clk
01:31:24]} Nc6 {[%clk 01:22:02]} 3. d4 {[%clk 01:31:24]} cxd4 {[%clk 01:22:02]}
4. Nxd4 {[%clk 01:31:24]} g6 {[%clk 01:22:02]} 5. c4 {[%clk 01:31:24]} Nf6
{[%clk 01:22:02]} 6. Nc3 {[%clk 01:31:24]} d6 {[%clk 01:22:02]} 7. Be2 Nxd4 8.
Qxd4 {[%emt 00:00:08]} Bg7 {[%emt 00:00:03]} 9. Qd1 {[%emt 00:00:24]} O-O
{[%emt 00:01:01]} 10. Be3 {[%emt 00:00:04]} Qa5 {[%emt 00:02:45]} 11. Qd2
{[%emt 00:00:15]} Be6 {[%emt 00:07:24]} 12. Rc1 {[%emt 00:02:46]} Rfc8 {[%emt
00:10:44]} 13. b3 {[%clk 01:30:52]} {[%emt 00:00:32]} a6 {[%clk 01:08:29]}
{[%emt 00:06:06]} 14. f3 {[%clk 01:22:29]} {[%emt 00:08:54]} b5 {[%clk
01:03:47]} {[%emt 00:05:12]} 15. Nd5 {[%clk 01:13:09]} {[%emt 00:09:51]} Qxd2+
{[%clk 01:03:46]} {[%emt 00:00:31]} 16. Kxd2 {[%clk 01:12:26]} {[%emt
00:01:13]} Bxd5 {[%clk 00:58:54]} {[%emt 00:05:22]} 17. exd5 {[%clk 01:07:48]}
{[%emt 00:01:45]} b4 {[%clk 00:48:26]} {[%emt 00:14:22]} 18. h4 {[%clk
01:04:41]} {[%emt 00:03:37]} a5 {[%clk 00:44:39]} {[%emt 00:04:18]} 19. Kd3
{[%clk 00:58:10]} {[%emt 00:07:01]} Nd7 {[%clk 00:37:32]} {[%emt 00:07:37]} 20.
f4 {[%clk 00:54:41]} {[%emt 00:03:58]} a4 {[%clk 00:28:56]} {[%emt 00:09:07]}
21. Bd1 {[%clk 00:54:32]} {[%emt 00:00:38]} axb3 {[%clk 00:26:55]} {[%emt
00:02:32]} 22. Bxb3 {[%clk 00:53:49]} {[%emt 00:01:13]} Nc5+ {[%clk 00:26:37]}
{[%emt 00:00:47]} 23. Bxc5 {[%clk 00:54:13]} {[%emt 00:00:07]} Rxc5 {[%clk
00:26:58]} {[%emt 00:00:08]} 24. Rce1 {[%clk 00:54:25]} {[%emt 00:00:17]} Ra7
{[%clk 00:25:24]} {[%emt 00:02:06]} 25. h5 {[%clk 00:53:57]} {[%emt 00:00:58]}
Bc3 {[%clk 00:23:31]} {[%emt 00:02:23]} 26. Re3 {[%clk 00:52:20]} {[%emt
00:02:06]} Kg7 {[%clk 00:22:28]} {[%emt 00:01:32]} 27. a4 {[%clk 00:47:24]}
{[%emt 00:05:27]} Rcc7 {[%clk 00:11:29]} {[%emt 00:11:30]} 28. Rh4 {[%clk
00:45:53]} {[%emt 00:01:43]} Kf6 {[%clk 00:05:56]} {[%emt 00:06:20]} 29. hxg6
{[%clk 00:36:48]} {[%emt 00:09:36]} hxg6 {[%clk 00:06:25]} 30. g4 {[%clk
00:33:02]} {[%emt 00:04:15]} e6 {[%clk 00:05:58]} {[%emt 00:00:58]} 31. g5+
{[%clk 00:31:50]} {[%emt 00:01:42]} Ke7 {[%clk 00:04:31]} {[%emt 00:01:56]} 32.
dxe6 {[%clk 00:31:50]} {[%emt 00:00:30]} fxe6 {[%clk 00:04:53]} {[%emt
00:00:08]} 33. Rh7+ {[%clk 00:32:10]} {[%emt 00:00:10]} Kf8 {[%clk 00:04:36]}
{[%emt 00:00:47]} 34. Rxc7 {[%clk 00:32:31]} {[%emt 00:00:08]} Rxc7 {[%clk
00:05:04]} {[%emt 00:00:02]} 35. Rxe6 {[%clk 00:32:55]} {[%emt 00:00:06]} Rf7
{[%clk 00:01:35]} {[%emt 00:03:59]} 36. Rxd6 {[%clk 00:32:24]} {[%emt
00:01:00]} Rxf4 {[%clk 00:01:53]} {[%emt 00:00:13]} 37. c5 {[%clk 00:30:13]}
{[%emt 00:02:41]} Rf5 {[%clk 00:01:18]} {[%emt 00:01:05]} 38. Rd5 {[%clk
00:30:21]} {[%emt 00:00:22]} Rxd5+ {[%clk 00:00:31]} {[%emt 00:01:18]} 39. Bxd5
{[%clk 00:30:42]} {[%emt 00:00:08]} Ke7 {[%clk 00:00:32]} {[%emt 00:00:28]} 40.
a5 {[%clk 00:30:58]} {[%emt 00:00:15]} Be5 {[%clk 00:00:46]} {[%emt 00:00:14]}
41. a6 {[%clk 00:31:15]} {[%emt 00:00:15]} Bb8 {[%clk 00:28:08]} {[%emt
00:03:09]} 42. Kc4 {[%clk 01:01:33]} {[%emt 00:00:10]} b3 {[%clk 00:27:38]}
{[%emt 00:01:01]} 43. Kxb3 {[%clk 01:01:56]} {[%emt 00:00:07]} Ba7 {[%clk
00:28:00]} {[%emt 00:00:08]} 44. Kc4 {[%clk 01:02:12]} {[%emt 00:00:14]} Kd7
{[%clk 00:28:21]} {[%emt 00:00:08]} 45. Kb5 {[%clk 01:02:25]} {[%emt 00:00:17]}
Kc7 {[%clk 00:28:33]} {[%emt 00:00:19]} 46. Bf7 {[%clk 01:02:46]} {[%emt
00:00:10]} 1-0

[Event "Swedish Chess Championship 2019: Kadett-SM"]
[Site "Stiga Sports Arena, Arenatorget 1, Eskilstuna, Sweden, Sweden"]
[Date "2019.07.11"]
[Round "5.6"]
[White "Johansson-Ohman, Daniel"]
[Black "Ostling, Albin"]
[Result "1/2-1/2"]
[TimeControl "90 minutes for 40 moves + 30 minutes for the rest of the game + 30 seconds per move from move one"]
[WhiteFideId "1736361"]
[BlackFideId "1746430"]
[WhiteElo "1825"]
[BlackElo "1660"]

1. c4 {[%clk 01:30:20]} {[%emt 00:00:39]} Nf6 {[%clk 01:30:53]} {[%emt
00:00:07]} 2. Nc3 {[%clk 01:30:38]} {[%emt 00:00:11]} g6 {[%clk 01:31:15]}
{[%emt 00:00:08]} 3. g3 {[%clk 01:31:00]} {[%emt 00:00:08]} Bg7 {[%clk
01:29:04]} {[%emt 00:02:41]} 4. Bg2 {[%clk 01:29:25]} {[%emt 00:02:06]} O-O
{[%clk 01:28:53]} {[%emt 00:00:41]} 5. Nf3 {[%clk 01:28:02]} {[%emt 00:01:53]}
c5 {[%clk 01:27:36]} {[%emt 00:01:47]} 6. O-O {[%clk 01:27:26]} {[%emt
00:01:05]} d6 {[%clk 01:26:16]} {[%emt 00:01:51]} 7. Rb1 {[%clk 01:21:51]}
{[%emt 00:06:05]} Nc6 {[%clk 01:25:14]} {[%emt 00:01:32]} 8. a3 {[%clk
01:22:02]} {[%emt 00:00:20]} a5 {[%clk 01:19:52]} {[%emt 00:05:52]} 9. d3
{[%clk 01:14:21]} {[%emt 00:08:11]} Bd7 {[%clk 01:14:29]} {[%emt 00:05:53]} 10.
Bd2 {[%clk 01:12:43]} {[%emt 00:02:08]} Qc8 {[%clk 01:10:14]} {[%emt 00:04:45]}
11. Qc2 {[%clk 01:02:37]} {[%emt 00:10:36]} Bh3 {[%clk 01:05:34]} {[%emt
00:05:09]} 12. Na2 {[%clk 01:00:40]} {[%emt 00:02:28]} Bxg2 {[%clk 01:00:21]}
{[%emt 00:05:42]} 13. Kxg2 {[%clk 00:57:13]} {[%emt 00:03:57]} a4 {[%clk
00:52:45]} {[%emt 00:08:07]} 14. b3 {[%clk 00:34:45]} {[%emt 00:22:58]} Nd4
{[%clk 00:37:49]} {[%emt 00:15:25]} 15. Nxd4 {[%clk 00:34:18]} {[%emt
00:00:57]} cxd4 {[%clk 00:38:11]} {[%emt 00:00:07]} 16. bxa4 {[%clk 00:30:04]}
{[%emt 00:04:45]} Qc6+ {[%clk 00:32:11]} {[%emt 00:06:30]} 17. Kg1 {[%clk
00:30:11]} {[%emt 00:00:22]} Rxa4 {[%clk 00:28:23]} {[%emt 00:04:19]} 18. Rb3
{[%clk 00:17:52]} {[%emt 00:12:50]} Rfa8 {[%clk 00:19:26]} {[%emt 00:09:26]} 19.
Qb2 {[%clk 00:13:55]} {[%emt 00:04:27]} e5 {[%clk 00:13:31]} {[%emt 00:06:25]}
20. f3 {[%clk 00:08:39]} {[%emt 00:05:46]} Nd7 {[%clk 00:10:34]} {[%emt
00:03:27]} 21. Nb4 {[%clk 00:08:27]} {[%emt 00:00:43]} Qc5 {[%clk 00:10:23]}
{[%emt 00:00:41]} 22. Ra1 {[%clk 00:01:19]} {[%emt 00:07:38]} b5 {[%clk
00:08:38]} {[%emt 00:02:14]} 23. cxb5 {[%clk 00:00:54]} {[%emt 00:00:56]} Qxb5
{[%clk 00:08:30]} {[%emt 00:00:38]} 24. Nc2 {[%clk 00:01:03]} {[%emt 00:00:21]}
Qc6 {[%clk 00:08:23]} {[%emt 00:00:37]} 25. Rb1 {[%clk 00:00:58]} {[%emt
00:00:35]} Rc8 {[%clk 00:06:56]} {[%emt 00:01:56]} 1/2-1/2